bitfinex/quotes_BTCUSD_20241010
["timestamp","ask_amount","ask_price","bid_price","bid_amount"]
[1728593221630,0.42162044,59785.0,59784.0,1.521628]
[1728593223141,0.42163449,59785.0,59784.0,1.521628]
[1728593223382,0.42244849,59785.0,59784.0,0.012628]
[1728593223629,0.42244849,59785.0,59784.0,0.018628]
[1728593223872,0.42244849,59785.0,59784.0,1.507628]
[1728593224090,0.42244849,59785.0,59784.0,1.501628]
[1728593224363,0.42244849,59785.0,59784.0,1.508628]
[1728593224619,0.42244849,59785.0,59784.0,1.503628]
[1728593224871,0.25518249,59785.0,59784.0,1.674896]
[1728593225125,0.12498249,59785.0,59784.0,1.674896]
[1728593225357,0.12498249,59785.0,59784.0,1.8442053]
[1728593225358,0.04668249,59785.0,59784.0,1.8442053]
[1728593225576,0.04205956,59785.0,59784.0,1.8442053]
[1728593226266,0.04205956,59785.0,59784.0,1.8422053]
[1728593226617,0.04205956,59785.0,59784.0,1.8452053]
[1728593226866,0.04205956,59785.0,59784.0,0.3452053]
[1728593227110,0.04205956,59785.0,59784.0,0.3422053]
[1728593227336,0.04205956,59785.0,59784.0,1.8442053]
[1728593229731,0.04205581,59785.0,59784.0,1.8442053]
[1728593231014,0.04156781,59785.0,59784.0,1.8442053]
[1728593231221,0.01648854,59785.0,59784.0,1.8442053]
[1728593232548,0.01648854,59785.0,59784.0,1.8606943]
[1728593232963,0.000814,59785.0,59784.0,2.05436363]
[1728593233183,0.01648766,59785.0,59784.0,2.05436363]
[1728593233407,0.01648766,59785.0,59784.0,2.10437798]
[1728593234111,0.000814,59785.0,59784.0,2.14835826]
[1728593234331,0.000814,59785.0,59784.0,2.19332682]
[1728593234794,0.000814,59785.0,59784.0,2.16836363]
[1728593235235,0.000814,59785.0,59784.0,2.15736363]
[1728593235445,0.000814,59785.0,59784.0,2.17136363]
[1728593235654,0.000814,59785.0,59784.0,2.67136363]
[1728593236301,0.000814,59785.0,59784.0,2.66236363]
[1728593236541,0.000814,59785.0,59784.0,2.67536363]
[1728593236779,0.000814,59785.0,59784.0,2.66136363]
[1728593236997,0.000814,59785.0,59784.0,2.66236363]
[1728593237472,0.000814,59785.0,59784.0,2.67636363]
[1728593238171,0.000814,59785.0,59784.0,2.80119438]
[1728593238591,0.000814,59785.0,59784.0,2.67636363]
[1728593238817,0.000814,59785.0,59784.0,2.77624572]
[1728593239041,0.000814,59785.0,59784.0,2.67636363]
[1728593239251,0.000814,59785.0,59784.0,2.76224108]
[1728593239672,0.000814,59785.0,59784.0,2.77624108]
[1728593239876,0.000814,59785.0,59784.0,2.76224108]
[1728593240320,0.000814,59785.0,59784.0,2.77624108]
[1728593240749,0.000814,59785.0,59784.0,2.77624695]
[1728593240963,0.000814,59785.0,59784.0,2.4826943]
[1728593241175,0.000814,59785.0,59784.0,2.53264561]
[1728593241427,0.000814,59785.0,59784.0,2.3154263]
[1728593241428,0.001302,59785.0,59784.0,2.3154263]
[1728593241674,0.001302,59785.0,59784.0,2.4826943]
[1728593241880,0.001302,59785.0,59784.0,2.2154263]
[1728593241881,0.01695087,59785.0,59784.0,2.2154263]
[1728593242088,0.02046464,59785.0,59784.0,2.2154263]
[1728593242527,0.02046464,59785.0,59784.0,2.3826943]
[1728593242733,0.01695087,59785.0,59784.0,2.3826943]
[1728593243161,0.01646287,59785.0,59784.0,2.3826943]
[1728593243588,0.000814,59785.0,59784.0,2.3826943]
[1728593244039,0.000814,59785.0,59784.0,2.57636363]
[1728593244251,0.000814,59785.0,59784.0,2.65626363]
[1728593244463,0.000814,59785.0,59784.0,2.62631494]
[1728593244677,0.000814,59785.0,59784.0,2.3826943]
[1728593245118,0.001302,59785.0,59784.0,2.3826943]
[1728593245373,0.00482009,59785.0,59784.0,2.3826943]
[1728593245611,0.02046967,59785.0,59784.0,2.2154263]
[1728593246246,0.02046997,59785.0,59784.0,2.2154263]
[1728593246459,0.18773597,59785.0,59784.0,2.2154263]
[1728593246685,0.18421788,59785.0,59784.0,2.2154263]
[1728593246923,0.18773596,59785.0,59784.0,2.2154263]
[1728593247336,0.02046996,59785.0,59784.0,2.2154263]
[1728593248999,0.06116035,59785.0,59784.0,2.2154263]
[1728593249629,0.06116042,59785.0,59784.0,2.2154263]
[1728593250703,0.06116042,59785.0,59784.0,2.3826943]
[1728593252780,0.06116148,59785.0,59784.0,2.2154263]
[1728593253447,0.06116148,59785.0,59784.0,2.3826943]
[1728593255411,0.06116148,59785.0,59784.0,2.2154263]
[1728593255626,0.22842748,59785.0,59784.0,2.2154263]
[1728593255835,0.37698026,59785.0,59784.0,1.546117]
[1728593256055,0.45870197,59785.0,59784.0,1.529628]
[1728593256477,0.45870197,59785.0,59784.0,1.501628]
[1728593256789,0.45870197,59785.0,59784.0,1.529628]
[1728593256985,0.45870197,59785.0,59784.0,1.515628]
[1728593257400,0.45870197,59785.0,59784.0,1.518628]
[1728593257609,0.45870197,59785.0,59784.0,1.515628]
[1728593257810,0.45870197,59785.0,59784.0,1.516628]
[1728593258018,0.45870197,59785.0,59784.0,1.502628]
[1728593258236,0.6523713,59785.0,59784.0,1.505628]
[1728593258458,0.85304063,59785.0,59784.0,0.005628]
[1728593258695,0.85304063,59785.0,59772.0,0.00250945]
[1728593258696,0.167793,59771.0,59770.0,0.25144371]
[1728593258913,0.42671813,59771.0,59770.0,1.75144371]
[1728593259133,0.38600722,59771.0,59770.0,1.75144371]
[1728593259359,0.38600722,59771.0,59770.0,1.5]
[1728593259360,0.42669601,59771.0,59770.0,1.5]
[1728593259577,0.45173293,59771.0,59770.0,1.5]
[1728593259995,0.45173293,59771.0,59770.0,1.514]
[1728593260418,0.45173293,59771.0,59770.0,1.5]
[1728593260677,0.45173293,59771.0,59770.0,1.508]
[1728593261101,0.42669634,59771.0,59770.0,1.515]
[1728593261536,0.42669634,59771.0,59770.0,1.508]
[1728593261970,0.42669634,59771.0,59770.0,0.015]
[1728593262194,0.42669634,59771.0,59770.0,0.007]
[1728593262405,0.38600722,59771.0,59770.0,1.5]
[1728593262608,0.42663443,59771.0,59770.0,0.008]
[1728593262822,0.42763443,59771.0,59770.0,0.006]
[1728593263252,0.42763443,59771.0,59770.0,0.014]
[1728593263467,0.42763443,59771.0,59770.0,0.006]
[1728593263688,0.42763443,59771.0,59770.0,0.012]
[1728593263689,0.43263443,59771.0,59770.0,0.012]
[1728593263898,0.43263443,59771.0,59770.0,0.006]
[1728593264131,0.16781,59765.0,59764.0,0.00250979]
[1728593264350,0.22408941,59765.0,59764.0,0.00250979]
[1728593264563,0.22752721,59765.0,59764.0,0.00250979]
[1728593265208,0.22752721,59765.0,59764.0,0.01450979]
[1728593265647,0.22752721,59765.0,59764.0,0.00250979]
[1728593265862,0.22752721,59765.0,59764.0,0.00650979]
[1728593266096,0.22752721,59765.0,59764.0,0.00850979]
[1728593267182,0.20252585,59765.0,59764.0,0.00850979]
[1728593268686,0.20252585,59765.0,59764.0,0.01013779]
[1728593269102,0.1869,59765.0,59764.0,0.01013779]
[1728593269325,0.22747703,59765.0,59764.0,0.01013779]
[1728593269536,0.20250655,59765.0,59764.0,0.01013779]
[1728593269962,0.20250655,59765.0,59764.0,0.007628]
[1728593272374,0.1712478,59765.0,59764.0,0.007628]
[1728593272597,0.18685241,59765.0,59764.0,0.007628]
[1728593272813,0.20245702,59765.0,59764.0,0.007628]
[1728593274058,0.20245702,59765.0,59764.0,0.001628]
[1728593274461,0.20245702,59765.0,59764.0,0.010628]
[1728593275064,0.20245702,59765.0,59764.0,0.001628]
[1728593275495,0.20245702,59765.0,59764.0,0.012628]
[1728593275921,0.20245702,59765.0,59764.0,0.003628]
[1728593276154,0.20245702,59765.0,59764.0,0.008628]
[1728593278850,0.03513502,59765.0,59764.0,0.008628]
[1728593279063,0.18685241,59765.0,59764.0,0.008628]
[1728593279273,0.03514516,59765.0,59764.0,1.508628]
[1728593279942,0.03170736,59765.0,59764.0,0.008628]
[1728593280131,0.19902936,59765.0,59764.0,0.008628]
[1728593280349,0.22745565,59765.0,59764.0,0.008628]
[1728593281436,0.30828945,59765.0,59764.0,0.008628]
[1728593283055,0.43418945,59765.0,59764.0,0.008628]
[1728593283728,0.43418945,59765.0,59764.0,0.006628]
[1728593283947,0.43418945,59765.0,59764.0,0.001628]
[1728593284153,0.43518945,59765.0,59764.0,0.001628]
[1728593284719,0.43418945,59765.0,59764.0,0.001628]
[1728593284931,0.43618945,59765.0,59764.0,0.001628]
[1728593285335,0.43618945,59765.0,59764.0,0.002628]
[1728593285534,0.43418945,59765.0,59764.0,0.002628]
[1728593285710,0.43418945,59765.0,59764.0,0.001628]
[1728593285893,0.43418945,59765.0,59764.0,0.002628]
[1728593286339,0.43422217,59765.0,59764.0,0.002628]
[1728593286993,0.43422217,59765.0,59764.0,0.001628]
[1728593287371,0.43622217,59765.0,59764.0,0.001628]
[1728593287797,0.43422217,59765.0,59764.0,0.001628]
[1728593288001,0.43432657,59765.0,59764.0,0.001628]
[1728593288255,0.43632657,59765.0,59764.0,0.001628]
[1728593289816,0.31042657,59765.0,59764.0,0.001628]
[1728593290025,0.22962657,59765.0,59764.0,0.001628]
[1728593290663,0.22762657,59765.0,59764.0,0.001628]
[1728593291096,0.22762657,59765.0,59764.0,0.002628]
[1728593291335,0.22768179,59765.0,59764.0,0.002628]
[1728593291514,0.18692081,59765.0,59764.0,0.001628]
[1728593291723,0.22768179,59765.0,59764.0,0.001628]
[1728593291930,0.22768179,59765.0,59764.0,0.004628]
[1728593292592,0.22768179,59765.0,59764.0,0.010628]
[1728593292766,0.22849679,59765.0,59764.0,0.004628]
[1728593293170,0.22849679,59765.0,59764.0,0.009628]
[1728593293408,0.22849679,59765.0,59764.0,0.004628]
[1728593293612,0.19714219,59765.0,59764.0,0.001628]
[1728593293891,0.19714219,59765.0,59764.0,0.003628]
[1728593294294,0.19714219,59765.0,59764.0,0.001628]
[1728593294713,0.19714219,59765.0,59764.0,0.008628]
[1728593294919,0.22851558,59765.0,59764.0,0.008628]
[1728593295129,0.22851558,59765.0,59764.0,0.001628]
[1728593295326,0.17205851,59765.0,59764.0,0.006628]
[1728593295556,0.17205851,59765.0,59764.0,0.003628]
[1728593295926,0.17205851,59765.0,59764.0,0.008628]
[1728593296139,0.17205851,59765.0,59764.0,0.003628]
[1728593296568,0.17205851,59765.0,59764.0,0.006628]
[1728593297192,0.17205851,59765.0,59764.0,0.008628]
[1728593297852,0.17205851,59765.0,59764.0,0.001628]
[1728593298073,0.17205851,59765.0,59764.0,0.007628]
[1728593298257,0.17205851,59765.0,59764.0,0.002628]
[1728593298672,0.17205851,59765.0,59764.0,0.005628]
[1728593299453,0.34765851,59765.0,59764.0,0.005628]
[1728593299727,0.35265851,59765.0,59764.0,0.005628]
[1728593300173,0.35265851,59765.0,59764.0,0.004628]
[1728593300385,0.39342927,59765.0,59764.0,0.005628]
[1728593300599,0.39343,59765.0,59764.0,0.005628]
[1728593300813,0.39343,59765.0,59764.0,0.001628]
[1728593301237,0.39543,59765.0,59764.0,0.001628]
[1728593301860,0.35465851,59765.0,59764.0,0.001628]
[1728593302092,0.39542098,59765.0,59764.0,0.001628]
[1728593302332,0.39542098,59765.0,59764.0,0.001253]
[1728593302574,0.39042098,59765.0,59764.0,0.001253]
[1728593302846,0.04701098,59765.0,59764.0,0.1705623]
[1728593303058,0.04749898,59765.0,59764.0,0.3378863]
[1728593303278,0.04549898,59765.0,59764.0,0.1705623]
[1728593303736,0.04627541,59765.0,59764.0,0.3378863]
[1728593304217,0.04157747,59765.0,59764.0,0.3388863]
[1728593304405,0.04157747,59765.0,59764.0,0.3438863]
[1728593304534,0.04157747,59765.0,59764.0,0.3528863]
[1728593304742,0.000815,59765.0,59764.0,0.3528863]
[1728593304952,0.04156158,59765.0,59764.0,0.3528863]
[1728593305155,0.04156158,59765.0,59764.0,1.8528863]
[1728593305841,0.04155641,59765.0,59764.0,1.8528863]
[1728593308135,0.04155641,59765.0,59764.0,0.3528863]
[1728593308599,0.04473778,59765.0,59764.0,1.8528863]
[1728593308995,0.04155641,59765.0,59764.0,1.8528863]
[1728593309229,0.000815,59765.0,59764.0,1.8528863]
[1728593309440,0.04153922,59765.0,59764.0,1.8528863]
[1728593310345,0.20934922,59765.0,59764.0,0.016253]
[1728593310794,0.2175306,59765.0,59764.0,0.016253]
[1728593312572,0.17680638,59765.0,59764.0,0.016253]
[1728593312788,0.21753184,59765.0,59764.0,0.016253]
[1728593319521,0.17680638,59765.0,59764.0,0.016253]
[1728593319731,0.21754129,59765.0,59764.0,0.016253]
[1728593320352,0.44209276,59765.0,59764.0,0.016253]
[1728593320593,0.49194129,59765.0,59764.0,0.016253]
[1728593320819,0.5671685,59765.0,59764.0,0.007253]
[1728593321889,0.5671685,59765.0,59764.0,0.001253]
[1728593322335,0.49394129,59765.0,59764.0,0.001253]
[1728593322566,0.56916551,59765.0,59764.0,0.001253]
[1728593323025,0.57116551,59765.0,59764.0,0.001253]
[1728593323400,0.49594129,59765.0,59764.0,0.001253]
[1728593326615,0.49394129,59765.0,59764.0,0.001253]
[1728593326830,0.49392272,59765.0,59764.0,0.001253]
[1728593327038,0.49074134,59765.0,59764.0,0.001253]
[1728593327253,0.54088346,59765.0,59764.0,0.001253]
[1728593327675,0.49074134,59765.0,59764.0,0.001253]
[1728593327882,0.54088235,59765.0,59764.0,0.001253]
[1728593330470,0.50016601,59765.0,59764.0,0.001253]
[1728593330729,0.54088137,59765.0,59764.0,0.001253]
[1728593330938,0.39164036,59765.0,59764.0,0.001253]
[1728593334226,0.21134036,59765.0,59764.0,0.001253]
[1728593335435,0.20934036,59765.0,59764.0,0.001253]
[1728593335672,0.20934036,59765.0,59764.0,0.003253]
[1728593336154,0.20934036,59765.0,59764.0,0.008253]
[1728593336384,0.20934036,59765.0,59764.0,0.003253]
[1728593336645,0.20934036,59765.0,59764.0,0.005253]
[1728593337732,0.20936323,59765.0,59764.0,0.005253]
[1728593337983,0.20936323,59765.0,59764.0,0.006253]
[1728593338512,0.20936323,59765.0,59764.0,0.001253]
[1728593338993,0.20936323,59765.0,59764.0,0.003253]
[1728593339221,0.20936323,59765.0,59764.0,0.001253]
[1728593339468,0.21036323,59765.0,59764.0,0.001253]
[1728593339698,0.20936323,59765.0,59764.0,0.001253]
[1728593339934,0.20936323,59765.0,59764.0,0.003253]
[1728593340174,0.20936323,59765.0,59764.0,0.001253]
[1728593340661,0.20936323,59765.0,59764.0,0.002253]
[1728593341142,0.21436323,59765.0,59764.0,0.002253]
[1728593341410,0.21536323,59765.0,59764.0,0.002253]
[1728593341639,0.21540135,59765.0,59764.0,0.002253]
[1728593341877,0.21440135,59765.0,59764.0,0.002253]
[1728593342112,0.21140135,59765.0,59764.0,0.001253]
[1728593342352,0.21240135,59765.0,59764.0,0.001253]
[1728593342600,0.20940135,59765.0,59764.0,0.001253]
[1728593342851,0.21040135,59765.0,59764.0,0.002253]
[1728593343086,0.21040135,59765.0,59764.0,0.001253]
[1728593343370,0.04259135,59765.0,59764.0,0.1705623]
[1728593343585,0.04258176,59765.0,59764.0,0.2662623]
[1728593343855,0.04258176,59765.0,59764.0,0.4295863]
[1728593344090,0.04158176,59765.0,59764.0,0.5103863]
[1728593344365,0.01649452,59765.0,59764.0,0.5143863]
[1728593344628,0.000815,59765.0,59764.0,0.5143863]
[1728593344890,0.000815,59765.0,59764.0,0.5103863]
[1728593345122,0.000815,59765.0,59764.0,0.5273863]
[1728593345366,0.000815,59765.0,59764.0,0.5203863]
[1728593345598,0.000815,59765.0,59764.0,0.5103863]
[1728593346060,0.000815,59765.0,59764.0,0.5363863]
[1728593347848,0.000815,59765.0,59764.0,2.0363863]
[1728593348120,0.000815,59765.0,59764.0,2.0378983]
[1728593348381,0.000815,59765.0,59764.0,2.21289605]
[1728593348634,0.000815,59765.0,59764.0,2.24089605]
[1728593348872,0.25144371,59782.0,59781.0,0.246077]
[1728593349098,0.25144371,59782.0,59781.0,0.4410863]
[1728593349099,0.26707654,59782.0,59781.0,0.4410863]
[1728593349339,0.01563283,59782.0,59781.0,0.4410863]
[1728593350065,0.01563283,59782.0,59781.0,0.2738093]
[1728593350304,0.01563283,59782.0,59781.0,0.4550863]
[1728593350548,0.01563283,59782.0,59781.0,0.7756373]
[1728593350549,0.01562261,59782.0,59781.0,0.7756373]
[1728593350799,0.000815,59784.0,59781.0,0.7756373]
[1728593351047,0.000488,59782.0,59781.0,0.606328]
[1728593351295,0.000488,59782.0,59781.0,0.618328]
[1728593351800,0.000488,59782.0,59781.0,2.2756373]
[1728593352064,0.000488,59782.0,59781.0,1.9530863]
[1728593352288,0.000488,59782.0,59781.0,1.9660863]
[1728593352519,0.000488,59782.0,59781.0,1.9540863]
[1728593352759,0.167762,59782.0,59781.0,1.6813093]
[1728593353010,0.167762,59782.0,59781.0,1.6953093]
[1728593353266,0.18336573,59782.0,59781.0,0.1813093]
[1728593353513,0.167762,59782.0,59781.0,0.1706093]
[1728593353748,0.167762,59782.0,59781.0,0.1566093]
[1728593354216,0.167762,59782.0,59781.0,0.1686093]
[1728593354691,0.167762,59782.0,59781.0,0.1566093]
[1728593354941,0.001303,59784.0,59781.0,0.3238853]
[1728593355175,0.18335796,59783.0,59781.0,0.1656093]
[1728593355405,0.000815,59784.0,59781.0,0.3328853]
[1728593355686,0.000815,59784.0,59783.0,0.167271]
[1728593355932,0.000815,59784.0,59783.0,0.61139453]
[1728593356184,0.000815,59784.0,59783.0,0.70424963]
[1728593356680,0.000815,59784.0,59783.0,0.5105803]
[1728593357386,0.000815,59784.0,59783.0,0.5245803]
[1728593357639,0.000815,59784.0,59783.0,0.5312713]
[1728593358113,0.000815,59784.0,59783.0,0.5422713]
[1728593358614,0.000815,59784.0,59783.0,0.5172713]
[1728593358876,0.000815,59784.0,59783.0,0.5312713]
[1728593359088,0.000815,59784.0,59783.0,0.5442713]
[1728593359526,0.000815,59784.0,59783.0,2.0442713]
[1728593359744,0.000815,59784.0,59783.0,2.0302713]
[1728593359978,0.000815,59784.0,59783.0,2.0442713]
[1728593360200,0.000815,59784.0,59783.0,1.8432713]
[1728593360418,0.000815,59784.0,59783.0,1.6900003]
[1728593360646,0.000815,59784.0,59783.0,1.7040003]
[1728593360844,0.000815,59784.0,59783.0,1.6900003]
[1728593361332,0.000815,59784.0,59783.0,1.7040003]
[1728593361566,0.000815,59784.0,59783.0,1.8712713]
[1728593361808,0.000815,59784.0,59783.0,1.8572713]
[1728593362019,0.000815,59784.0,59783.0,1.8552713]
[1728593362470,0.000815,59784.0,59783.0,1.8692713]
[1728593362702,0.000815,59784.0,59783.0,1.8552713]
[1728593362914,0.000815,59784.0,59783.0,1.8692713]
[1728593363130,0.000815,59784.0,59783.0,1.8552713]
[1728593363573,0.000815,59784.0,59783.0,1.8692713]
[1728593363761,0.000815,59784.0,59783.0,1.8572713]
[1728593364221,0.000815,59784.0,59783.0,1.8712713]
[1728593364458,0.000815,59784.0,59783.0,0.3712713]
[1728593364670,0.000815,59784.0,59783.0,0.3572713]
[1728593364842,0.001303,59784.0,59783.0,0.3572713]
[1728593365067,0.001303,59784.0,59783.0,1.8692713]
[1728593365616,0.000815,59784.0,59783.0,1.8692713]
[1728593366486,0.000815,59784.0,59783.0,0.3692713]
[1728593370582,0.000815,59784.0,59783.0,1.8692713]
[1728593372366,0.01645521,59784.0,59783.0,1.8692713]
[1728593373717,0.26431121,59784.0,59783.0,0.032691]
[1728593374811,0.248671,59784.0,59783.0,0.020691]
[1728593375034,0.248671,59784.0,59783.0,0.018691]
[1728593375035,0.36362762,59784.0,59783.0,0.018691]
[1728593375293,0.36362762,59784.0,59783.0,0.028691]
[1728593375514,0.36362762,59784.0,59783.0,0.018691]
[1728593375962,0.36362762,59784.0,59783.0,0.021]
[1728593376178,0.36362762,59784.0,59783.0,0.012]
[1728593376398,0.36362762,59784.0,59781.0,0.00163]
[1728593376399,0.167762,59782.0,59781.0,0.00163]
[1728593376615,0.37708795,59782.0,59781.0,0.00163]
[1728593377506,0.91050099,59782.0,59781.0,0.00163]
[1728593377735,1.05206658,59782.0,59781.0,0.00163]
[1728593377952,1.05206658,59782.0,59781.0,0.00263]
[1728593377953,1.03640996,59782.0,59781.0,0.00263]
[1728593378385,1.03740996,59782.0,59781.0,0.00163]
[1728593378606,1.03740996,59782.0,59781.0,0.00263]
[1728593378792,1.03740996,59782.0,59781.0,0.00163]
[1728593379021,1.08865562,59782.0,59781.0,0.00163]
[1728593379243,1.09065562,59782.0,59781.0,0.00263]
[1728593379460,1.08964121,59782.0,59781.0,0.00263]
[1728593379680,1.10529669,59782.0,59781.0,0.00263]
[1728593379897,1.10629669,59782.0,59781.0,0.00363]
[1728593381734,1.106272,59782.0,59781.0,0.00363]
[1728593382297,1.05504075,59782.0,59781.0,0.00363]
[1728593383135,1.07506513,59782.0,59781.0,0.00363]
[1728593384374,1.05943434,59782.0,59781.0,0.00363]
[1728593384585,1.07504696,59782.0,59781.0,0.00363]
[1728593386484,1.47504696,59782.0,59781.0,0.00363]
[1728593387531,1.07504696,59782.0,59781.0,0.00363]
[1728593389489,0.86135325,59782.0,59781.0,0.00363]
[1728593390821,1.05302258,59782.0,59781.0,0.00263]
[1728593391247,1.05402258,59782.0,59781.0,0.00363]
[1728593392090,1.05302258,59782.0,59781.0,0.00263]
[1728593392299,1.05402258,59782.0,59781.0,0.00363]
[1728593392719,1.05402258,59782.0,59781.0,0.00263]
[1728593392928,1.05202258,59782.0,59781.0,0.00163]
[1728593393148,1.05402258,59782.0,59781.0,0.00363]
[1728593393783,0.86035325,59782.0,59781.0,0.00363]
[1728593395310,0.84474063,59782.0,59781.0,0.00363]
[1728593395524,0.86033498,59782.0,59781.0,0.00363]
[1728593395736,0.86114998,59782.0,59781.0,0.00363]
[1728593396838,1.05481931,59782.0,59781.0,0.00363]
[1728593397246,0.005488,59772.0,59771.0,0.25144371]
[1728593397491,0.38205368,59772.0,59771.0,0.25144371]
[1728593397691,0.38205368,59772.0,59765.0,0.25144371]
[1728593397692,0.172807,59766.0,59765.0,0.25144371]
[1728593397864,0.38207068,59766.0,59765.0,0.25144371]
[1728593398309,0.17281,59765.0,59759.0,0.25144371]
[1728593398466,0.18840435,59765.0,59759.0,0.25144371]
[1728593398666,0.18340435,59765.0,59759.0,0.25144371]
[1728593399798,0.18340435,59765.0,59764.0,0.008253]
[1728593399957,0.18340435,59765.0,59764.0,0.012253]
[1728593400159,0.18340435,59765.0,59764.0,0.005253]
[1728593400363,0.18340435,59765.0,59764.0,0.012253]
[1728593400562,0.18340435,59765.0,59764.0,0.005253]
[1728593400990,0.18340435,59765.0,59764.0,0.009253]
[1728593401200,0.18340435,59765.0,59764.0,0.005253]
[1728593401418,0.18340435,59765.0,59764.0,0.009253]
[1728593402039,0.18340435,59765.0,59764.0,0.005253]
[1728593402663,0.18340435,59765.0,59764.0,0.007253]
[1728593403701,0.18340435,59765.0,59764.0,0.003253]
[1728593404130,0.18340435,59765.0,59764.0,0.006253]
[1728593404583,0.18340435,59765.0,59764.0,0.008253]
[1728593404982,0.18340435,59765.0,59764.0,0.006253]
[1728593405197,0.16781,59765.0,59764.0,0.006253]
[1728593405396,0.18345941,59765.0,59764.0,0.002253]
[1728593405566,0.18345941,59765.0,59764.0,0.005253]
[1728593406040,0.18345941,59765.0,59764.0,0.001253]
[1728593406219,0.18345941,59765.0,59764.0,0.006253]
[1728593406435,0.18345941,59765.0,59764.0,0.001253]
[1728593406882,0.18345941,59765.0,59764.0,0.004253]
[1728593407553,0.18345941,59765.0,59764.0,0.006253]
[1728593407973,0.18345941,59765.0,59764.0,0.004253]
[1728593408183,0.27065941,59765.0,59764.0,0.005253]
[1728593408630,0.27065941,59765.0,59764.0,0.001253]
[1728593408844,0.27070047,59765.0,59764.0,0.004253]
[1728593409285,0.27070047,59765.0,59764.0,0.001253]
[1728593409495,0.27070047,59765.0,59764.0,0.003253]
[1728593409719,0.27070047,59765.0,59764.0,0.001253]
[1728593409939,0.27170047,59765.0,59764.0,0.001253]
[1728593410386,0.27370047,59765.0,59764.0,0.001253]
[1728593410777,0.27570047,59765.0,59764.0,0.001253]
[1728593411202,0.27170047,59765.0,59764.0,0.001253]
[1728593411411,0.27370047,59765.0,59764.0,0.002253]
[1728593411620,0.27270047,59765.0,59764.0,0.002253]
[1728593411821,0.27470047,59765.0,59764.0,0.002253]
[1728593412456,0.2746953,59765.0,59764.0,0.002253]
[1728593412673,0.2726953,59765.0,59764.0,0.002253]
[1728593412879,0.2746953,59765.0,59764.0,0.002253]
[1728593413095,0.2766953,59765.0,59764.0,0.002253]
[1728593413309,0.2746953,59765.0,59764.0,0.002253]
[1728593416102,0.27469219,59765.0,59764.0,0.002253]
[1728593418299,0.27669219,59765.0,59764.0,0.002253]
[1728593419469,0.27469219,59765.0,59764.0,0.002253]
[1728593419695,0.25901,59765.0,59764.0,0.002253]
[1728593419912,0.27468879,59765.0,59764.0,0.002253]
[1728593420133,0.44599809,59765.0,59764.0,0.002253]
[1728593420351,0.46899809,59765.0,59764.0,0.002253]
[1728593421225,0.52030753,59765.0,59764.0,0.002253]
[1728593421442,0.51904945,59765.0,59764.0,0.002253]
[1728593421665,0.46899809,59765.0,59764.0,0.002253]
[1728593422093,0.62030269,59765.0,59764.0,0.002253]
[1728593422316,1.04818411,59765.0,59764.0,0.002253]
[1728593422551,0.256043,59753.0,59752.0,0.25144371]
[1728593422770,0.56739112,59753.0,59752.0,0.25144371]
[1728593422991,0.56739112,59753.0,59746.0,0.25144371]
[1728593422992,0.17286,59747.0,59746.0,0.25144371]
[1728593423204,0.18853879,59747.0,59746.0,0.25144371]
[1728593423441,0.18853879,59747.0,59744.0,0.00251058]
[1728593423442,0.167866,59745.0,59744.0,0.00251058]
[1728593423914,0.18354479,59745.0,59744.0,0.00251058]
[1728593424839,0.18354479,59745.0,59744.0,0.01551058]
[1728593425926,0.18354479,59745.0,59744.0,0.02951058]
[1728593427888,0.01567879,59745.0,59744.0,0.53889988]
[1728593428358,0.000488,59751.0,59744.0,1.69881988]
[1728593428597,0.01565599,59750.0,59749.0,0.247566]
[1728593428882,0.01565599,59750.0,59749.0,0.5118753]
[1728593429356,0.167336,59760.0,59755.0,0.167348]
[1728593429588,0.01565515,59759.0,59757.0,0.0818]
[1728593429817,0.167336,59760.0,59758.0,0.1693093]
[1728593430050,0.01565513,59759.0,59758.0,0.1693093]
[1728593430297,0.01565513,59759.0,59758.0,0.4305503]
[1728593430558,0.43394014,59766.0,59759.0,0.334673]
[1728593430792,0.43394014,59766.0,59758.0,0.2632093]
[1728593430793,0.167799,59769.0,59764.0,0.167323]
[1728593431006,0.167799,59769.0,59761.0,0.52833533]
[1728593431007,0.26709744,59768.0,59761.0,0.52833533]
[1728593431231,0.01565373,59767.0,59765.0,0.16732]
[1728593431450,0.01565373,59766.0,59765.0,0.16732]
[1728593431665,0.01565373,59766.0,59765.0,0.167322]
[1728593431942,0.01565373,59766.0,59765.0,0.3366313]
[1728593432155,0.25193171,59775.0,59765.0,0.53867863]
[1728593432376,0.01564136,59774.0,59772.0,0.167299]
[1728593432592,0.00559593,59774.0,59773.0,0.3366083]
[1728593432893,0.02123632,59774.0,59773.0,0.3366083]
[1728593433134,0.18853232,59774.0,59773.0,0.1693093]
[1728593433375,0.18902032,59774.0,59773.0,0.1693093]
[1728593434381,0.18902032,59774.0,59773.0,0.1733093]
[1728593434855,0.18902032,59774.0,59773.0,0.01]
[1728593436621,0.18902032,59774.0,59773.0,0.006]
[1728593436852,0.18902032,59774.0,59773.0,0.01]
[1728593437322,0.18899944,59774.0,59773.0,0.006]
[1728593437757,0.18899944,59774.0,59773.0,0.01]
[1728593437976,0.18899944,59774.0,59773.0,0.004]
[1728593438657,0.18899944,59774.0,59773.0,0.01]
[1728593439332,0.18899944,59774.0,59773.0,0.004]
[1728593439564,0.18899944,59774.0,59773.0,0.01]
[1728593440693,0.18898882,59774.0,59773.0,0.01]
[1728593443145,0.18898882,59774.0,59773.0,0.006]
[1728593443362,0.18898882,59774.0,59773.0,0.007]
[1728593443780,0.18898882,59774.0,59773.0,0.006]
[1728593444226,0.18898882,59774.0,59773.0,0.004]
[1728593444420,0.18898882,59774.0,59773.0,0.01]
[1728593444688,0.02169282,59774.0,59768.0,0.25144371]
[1728593444911,0.167798,59769.0,59768.0,0.25144371]
[1728593445343,0.00605627,59769.0,59767.0,1.5]
[1728593445565,0.00605627,59769.0,59767.0,1.6693093]
[1728593445824,0.00605627,59769.0,59767.0,1.8366233]
[1728593446030,0.00605627,59769.0,59768.0,0.3366223]
[1728593446241,0.000488,59771.0,59770.0,0.167308]
[1728593446451,0.000488,59771.0,59770.0,0.3366173]
[1728593447944,0.000488,59771.0,59770.0,0.3436173]
[1728593448409,0.000488,59773.0,59770.0,0.1763093]
[1728593448624,0.167294,59775.0,59771.0,0.1693093]
[1728593448625,0.000488,59775.0,59771.0,0.1693093]
[1728593448820,0.000488,59775.0,59773.0,0.167297]